bitfinex/quotes_ETHUSD_20240714
["timestamp","ask_amount","ask_price","bid_price","bid_amount"]
[1720950357426,0.55,3224.1,3223.4,5.17275004]
[1720950357587,1.867,3223.8,3223.4,5.17275004]
[1720950357787,2.25,3223.7,3222.7,5.17275004]
[1720950358025,1.867,3223.0,3222.7,5.17275004]
[1720950358338,0.55,3222.9,3222.3,6.6141462]
[1720950359234,0.87494039,3222.9,3222.3,6.6141462]
[1720950359405,0.87494039,3222.9,3222.4,1.17868962]
[1720950360043,0.87494039,3222.9,3222.2,5.17275004]
[1720950360228,0.87494039,3222.9,3222.3,0.06206248]
[1720950361051,0.32494039,3222.9,3222.3,0.06206248]
[1720950361250,0.32494039,3222.9,3222.2,5.17275004]
[1720950361857,0.32494039,3222.9,3222.3,0.06205903]
[1720950362051,0.32494039,3222.9,3222.4,0.52348091]
[1720950362235,0.32494039,3222.9,3222.4,0.58553364]
[1720950362413,0.32494039,3222.9,3222.4,0.52348091]
[1720950362840,0.32494039,3222.9,3222.5,0.10903248]
[1720950363524,0.32494039,3222.9,3222.5,0.04697816]
[1720950364355,0.32494039,3222.9,3222.5,0.10903109]
[1720950364649,3.0,3223.9,3222.5,0.10903109]
[1720950364849,0.3249105,3223.3,3222.6,5.17275004]
[1720950365033,0.3249105,3223.3,3222.7,0.5902247]
[1720950365345,0.55,3223.8,3222.7,0.63724262]
[1720950365545,0.32490583,3223.3,3222.8,0.06204641]
[1720950365746,0.55,3223.8,3222.9,0.04691051]
[1720950366045,0.32490769,3223.3,3222.9,0.04691051]
[1720950366250,0.55,3223.8,3222.9,0.04691051]
[1720950366459,0.55,3223.8,3222.7,0.52817811]
[1720950366460,0.32490758,3223.3,3222.7,0.52817811]
[1720950366653,0.32490758,3223.3,3223.0,0.04685681]
[1720950366838,0.55,3223.8,3222.8,0.57009282]
[1720950367035,0.32490891,3223.3,3223.1,0.04680311]
[1720950367240,0.55,3223.8,3222.8,0.6321389]
[1720950367566,0.32489962,3223.4,3222.8,0.6321389]
[1720950367720,0.32489962,3223.4,3222.9,0.04691051]
[1720950367926,0.32489962,3223.4,3223.0,0.06204298]
[1720950368277,0.32489962,3223.4,3223.1,0.04680311]
[1720950368558,0.32489962,3223.4,3223.0,0.06204298]
[1720950368763,0.32489962,3223.4,3223.1,0.04680311]
[1720950368932,0.32489962,3223.4,3223.0,0.06204298]
[1720950369133,0.32489962,3223.4,3223.1,0.04680311]
[1720950369320,0.32489962,3223.4,3222.8,0.57009282]
[1720950369937,0.32489962,3223.4,3222.8,0.6321392]
[1720950370550,0.32489962,3223.4,3222.8,0.57009282]
[1720950372152,0.32489962,3223.4,3222.6,5.17275004]
[1720950372354,2.3191,3223.2,3222.7,0.04712486]
[1720950372555,0.55,3223.1,3222.6,5.17275004]
[1720950372729,0.55,3223.1,3222.7,0.04710174]
[1720950372924,3.55,3223.1,3222.6,5.17275004]
[1720950373155,3.55,3223.1,3222.7,0.04710174]
[1720950373469,0.55,3223.0,3222.6,5.17275004]
[1720950373763,0.55,3223.0,3222.7,0.04710174]
[1720950373970,0.55,3223.0,3222.6,5.17275004]
[1720950374472,0.55,3223.0,3222.7,0.04713171]
[1720950374966,0.55,3223.0,3222.6,5.17275004]
[1720950374967,3.0,3223.1,3222.6,5.17275004]
[1720950375164,2.3191,3223.7,3222.7,0.56440671]
[1720950375573,2.3191,3223.7,3222.7,0.04713171]
[1720950375865,2.3191,3223.7,3222.6,5.17275004]
[1720950376167,2.3191,3223.7,3222.7,0.0471377]
[1720950376346,2.3191,3223.7,3222.6,5.17275004]
[1720950376672,0.55,3223.6,3222.7,0.0471377]
[1720950376975,0.28691,3223.5,3222.6,5.17275004]
[1720950377270,0.55,3223.4,3222.7,0.047124]
[1720950377459,3.0,3223.6,3222.7,0.047124]
[1720950377656,0.55,3223.5,3222.6,5.17275004]
[1720950377843,3.55,3223.6,3222.7,0.517275]
[1720950378174,3.0,3223.5,3222.7,0.517275]
[1720950378535,3.55,3223.6,3222.7,0.517275]
[1720950378739,5.419,3223.6,3222.7,0.517275]
[1720950382681,5.419,3223.6,3222.7,0.5032737]
[1720950383178,0.32492449,3223.5,3222.7,0.5032737]
[1720950383582,0.32492449,3223.5,3222.9,2.3258]
[1720950383743,0.32492449,3223.5,3223.0,0.06203715]
[1720950383944,0.32492449,3223.5,3223.0,0.10900945]
[1720950384394,0.32492449,3223.5,3223.0,0.0469723]
[1720950384747,0.32492449,3223.5,3222.8,0.56760237]
[1720950385111,0.32492449,3223.5,3223.1,0.0469186]
[1720950385243,0.32492449,3223.5,3222.8,0.56760237]
[1720950385447,0.32492449,3223.5,3222.9,0.047026]
[1720950386077,0.32492449,3223.5,3222.6,5.23479778]
[1720950386387,0.32492449,3223.5,3222.7,0.75605978]
[1720950386591,0.32492449,3223.5,3222.8,0.06204772]
[1720950386757,0.32492449,3223.5,3222.8,0.10912743]
[1720950387488,0.32492449,3223.5,3222.8,0.04707971]
[1720950387655,0.32492449,3223.5,3222.8,0.10912744]
[1720950387855,0.32492449,3223.5,3222.8,0.71292117]
[1720950388103,0.32492449,3223.5,3222.8,0.65087344]
[1720950388851,0.32492449,3223.5,3222.8,0.04707971]
[1720950389592,0.32492449,3223.5,3222.9,0.045417]
[1720950389978,0.32492449,3223.5,3223.0,0.06204257]
[1720950390178,0.32492449,3223.5,3223.0,0.0453633]
[1720950390377,0.32492449,3223.5,3222.6,5.23479247]
[1720950390579,0.32492449,3223.5,3223.1,0.0453096]
[1720950390785,0.32492449,3223.5,3222.7,0.75605925]
[1720950390985,0.32492449,3223.5,3223.2,0.04525591]
[1720950391296,0.32492449,3223.5,3222.7,0.75605925]
[1720950391492,0.32492449,3223.5,3223.3,0.04520221]
[1720950391693,0.32492449,3223.5,3222.7,0.75605925]
[1720950391911,0.32492449,3223.5,3223.4,0.04512627]
[1720950392061,0.32492449,3223.5,3222.8,0.65492347]
[1720950392259,0.32492449,3223.5,3223.4,0.04512627]
[1720950392495,0.32492449,3223.5,3222.8,0.65492347]
[1720950392699,0.32492449,3223.5,3223.4,0.04512456]
[1720950392863,0.32492449,3223.5,3222.8,0.65492347]
[1720950393411,0.32492449,3223.5,3222.9,2.30929304]
[1720950393565,0.32492449,3223.5,3223.0,0.35845922]
[1720950393965,0.32492449,3223.5,3223.1,0.04528563]
[1720950394166,0.32492449,3223.5,3223.0,0.29642165]
[1720950394465,0.32492449,3223.5,3223.2,0.04518829]
[1720950394808,0.32492449,3223.5,3223.3,0.0451346]
[1720950395180,0.32492449,3223.5,3222.4,2.2639]
[1720950395474,0.32492449,3223.5,3223.4,0.04508091]
[1720950395673,0.87492449,3223.5,3222.4,2.2639]
[1720950395900,0.32492449,3223.5,3222.7,1.82432253]
[1720950396070,0.32492449,3223.5,3222.8,0.06204481]
[1720950396421,0.32492449,3223.5,3222.9,0.04534939]
[1720950397387,0.32492449,3223.5,3223.0,0.06204428]
[1720950397689,0.32492449,3223.5,3223.0,0.04529569]
[1720950398126,0.32492449,3223.5,3222.7,1.762275]
[1720950398437,0.32492449,3223.5,3223.1,0.04524199]
[1720950398621,0.32492449,3223.5,3222.8,0.7555449]
[1720950398922,0.32492449,3223.5,3222.9,0.04539218]
[1720950399142,0.32492449,3223.5,3223.0,0.06204245]
[1720950399319,0.32492449,3223.5,3222.9,0.04539218]
[1720950399502,0.32492449,3223.5,3222.9,0.29550915]
[1720950399696,0.32492449,3223.5,3223.1,0.0452805]
[1720950399902,0.32492449,3223.5,3223.0,0.0453342]
[1720950400242,0.32492449,3223.5,3223.1,0.0452625]
[1720950400589,0.32492449,3223.5,3222.9,0.25011697]
[1720950400792,0.32492449,3223.5,3223.2,0.0452088]
[1720950401127,0.32492449,3223.5,3222.9,0.25011697]
[1720950401287,0.32492449,3223.5,3223.3,0.04515596]
[1720950401488,0.32492449,3223.5,3222.9,0.25011697]
[1720950401714,0.32492449,3223.5,3223.4,0.04510228]
[1720950401928,0.32492449,3223.5,3222.9,0.25011697]
[1720950402607,0.32492449,3223.5,3223.0,0.04531705]
[1720950404347,0.32492449,3223.5,3223.1,0.0620423]
[1720950404697,0.32492449,3223.5,3223.2,0.04520795]
[1720950405515,0.32492449,3223.5,3223.2,2.4819502]
[1720950405725,0.32492449,3223.5,3223.3,0.24819502]
[1720950405927,0.32492449,3223.5,3223.3,0.31023216]
[1720950406129,0.32492449,3223.5,3223.4,0.04508944]
[1720950420900,0.32492449,3223.5,3223.4,2.41978944]
[1720950421054,0.32492449,3223.5,3223.4,5.41978944]
[1720950421249,0.32492449,3223.5,3223.4,6.3029989]
[1720950430899,0.32492449,3223.5,3223.4,8.7848489]
[1720950436622,0.32492449,3223.5,3223.4,6.3029989]
[1720950436825,0.32492449,3223.5,3223.4,3.9282989]
[1720950437044,0.32492449,3223.5,3223.4,3.10710665]
[1720950437193,0.32492449,3223.5,3223.4,3.04508944]
[1720950437394,0.32492449,3223.5,3223.4,0.04508944]
[1720950444403,0.32492449,3223.5,3223.2,0.062028]
[1720950444624,2.67792449,3223.5,3223.3,0.04358508]
[1720950444824,2.67792449,3223.5,3222.9,0.25011697]
[1720950445024,2.67792449,3223.5,3223.0,0.04374617]
[1720950451243,2.67792449,3223.5,3223.0,0.10578568]
[1720950454625,2.67792449,3223.5,3223.0,0.04374617]
[1720950457956,2.67792449,3223.5,3223.0,0.10578587]
[1720950458729,0.32492449,3223.5,3223.0,0.10578587]
[1720950466754,0.32492449,3223.5,3223.4,0.778]
[1720950467266,0.32492449,3223.5,3223.4,0.81229539]
[1720950467903,0.32492449,3223.5,3223.4,0.03429539]
[1720950468332,0.32492449,3223.5,3223.2,0.778]
[1720950468534,0.32492449,3223.5,3223.4,0.03429173]
[1720950468771,0.32492449,3223.5,3223.2,0.778]
[1720950468772,0.32492449,3223.5,3223.3,0.03434925]
[1720950468974,0.32492449,3223.5,3223.4,0.81229173]
[1720950476991,0.32492449,3223.5,3223.4,0.03429173]
[1720950477363,0.32492449,3223.5,3223.2,0.778]
[1720950477564,2.62682449,3223.5,3223.4,0.0342725]
[1720950477777,2.62682449,3223.5,3223.3,0.03433002]
[1720950478094,2.62682449,3223.5,3223.4,0.0342725]
[1720950478291,2.62682449,3223.5,3223.2,0.778]
[1720950478502,2.62682449,3223.5,3223.3,0.03433002]
[1720950478994,2.62682449,3223.5,3223.2,0.778]
[1720950479195,2.62682449,3223.5,3223.4,0.0342725]
[1720950479385,2.62682449,3223.5,3223.3,0.03433002]
[1720950479561,2.62682449,3223.5,3223.2,0.778]
[1720950479761,2.62682449,3223.5,3223.4,0.0342725]
[1720950480064,2.62682449,3223.5,3223.2,0.778]
[1720950480397,2.62682449,3223.5,3223.3,0.03433002]
[1720950480784,2.62682449,3223.5,3223.2,0.778]
[1720950480991,2.62682449,3223.5,3223.4,0.0342725]
[1720950481292,2.62682449,3223.5,3223.2,0.778]
[1720950481468,2.62682449,3223.5,3223.3,0.03433002]
[1720950481673,2.62682449,3223.5,3223.2,0.778]
[1720950481872,2.62682449,3223.5,3223.3,0.03433002]
[1720950482090,2.62682449,3223.5,3223.2,0.778]
[1720950482293,0.32492449,3223.5,3223.4,0.778]
[1720950482512,0.32492449,3223.5,3223.4,0.81229905]
[1720950487067,0.32492449,3223.5,3223.4,8.90060118]
[1720950487381,2.314,3224.8,3223.5,2.48175]
[1720950487585,0.32487739,3224.7,3224.4,0.778]
[1720950487767,0.32487739,3224.7,3224.5,0.06201666]
[1720950487970,0.32487739,3224.7,3224.6,0.778]
[1720950488380,0.32487739,3224.7,3224.6,0.81714639]
[1720950488610,2.314,3225.1,3224.6,0.81714639]
[1720950488929,2.314,3225.1,3224.7,0.06200889]
[1720950489066,2.314,3225.5,3225.0,0.778]
[1720950489431,0.32485295,3225.6,3225.2,0.778]
[1720950489630,0.32485295,3225.6,3225.3,0.06200044]
[1720950489919,0.32485295,3225.6,3225.5,0.778]
[1720950490077,2.314,3225.9,3225.5,0.778]
[1720950490281,2.314,3225.9,3225.6,0.10618245]
[1720950490719,2.314,3225.9,3225.6,0.04418806]
[1720950490922,0.32483471,3227.0,3225.6,0.04418806]
[1720950490923,2.314,3226.9,3225.6,0.04418806]
[1720950491130,0.26388347,3226.8,3225.6,5.17275004]
[1720950491318,0.26388347,3226.8,3225.7,0.06199048]
[1720950491669,0.26388347,3226.8,3225.7,0.04410764]
[1720950491960,2.314,3226.7,3225.7,0.04410764]
[1720950492314,2.18983471,3227.0,3225.7,0.04410764]
[1720950492315,2.314,3226.5,3225.7,0.04410764]
[1720950493226,2.314,3226.3,3225.7,0.04410764]
[1720950493553,2.314,3226.1,3225.7,0.04410764]
[1720950493964,2.314,3226.0,3225.7,0.04410764]
[1720950494119,2.314,3225.8,3225.3,5.17275004]
[1720950494339,2.314,3225.6,3225.3,5.17275004]
[1720950494639,2.314,3225.4,3225.3,5.17275004]
[1720950494882,2.314,3225.4,3224.7,5.17275004]
[1720950497675,2.314,3225.4,3224.8,0.04736718]
[1720950498883,2.5454,3225.4,3224.8,0.04727778]
[1720950499041,3.0,3225.3,3224.8,0.04727778]
[1720950499376,3.0,3225.3,3224.7,5.17275004]
[1720950499554,3.0,3225.3,3224.9,0.04584095]
[1720950499873,3.0,3225.3,3225.0,0.04575155]
[1720950500081,3.55454,3225.3,3224.7,5.17275004]
[1720950500378,3.55454,3225.3,3224.8,0.0460329]
[1720950500678,2.314,3225.1,3224.7,5.17275004]
[1720950504274,2.314,3225.1,3224.4,6.6141462]
[1720950504454,2.900854,3225.1,3224.3,5.17275004]
[1720950505701,0.32494191,3225.0,3224.3,5.17275004]
[1720950513520,2.466,3224.9,3224.3,5.17275004]
[1720950513736,2.466,3224.9,3224.0,5.17275004]
[1720950513880,2.466,3224.7,3224.0,5.17275004]
[1720950514084,0.3016,3224.6,3224.0,5.17275004]
[1720950514480,2.466,3224.5,3224.0,5.17275004]
[1720950519023,2.466,3224.5,3223.6,11.78689624]
[1720950519233,2.466,3224.5,3223.6,5.17275004]
[1720950519406,2.466,3224.3,3223.6,5.17275004]
[1720950519605,0.3016,3224.2,3223.6,5.17275004]
[1720950520089,2.466,3224.1,3223.6,5.17275004]
[1720950521032,0.32494343,3224.0,3223.6,5.17275004]
[1720950525011,0.32494343,3224.0,3223.2,5.17275004]
[1720950529529,2.2602,3223.9,3223.2,5.17275004]
[1720950529732,0.25851434,3223.8,3223.2,5.17275004]
[1720950529949,0.25851434,3223.8,3222.9,17.62275004]
[1720950530261,2.2602,3223.7,3222.9,17.62275004]
[1720950533958,2.2602,3223.7,3222.9,5.17275004]
[1720950536339,3.0,3223.9,3222.9,5.17275004]
[1720950536340,0.32490339,3223.6,3222.9,5.17275004]
[1720950536530,2.2602,3223.5,3222.9,5.17275004]
[1720950540080,2.2602,3223.5,3222.6,11.78689624]
[1720950540376,2.51871034,3223.5,3222.6,11.78689624]
[1720950540767,2.51871034,3223.5,3222.6,5.17275004]
[1720950542302,2.51871034,3223.5,3222.6,5.23480054]
[1720950542879,2.2602,3223.5,3222.6,5.23480054]
[1720950543705,2.2602,3223.5,3222.6,5.17275004]
[1720950543886,2.2602,3223.5,3222.7,0.06204315]
[1720950555342,2.2602,3223.5,3222.6,5.95075004]
[1720950555553,0.778,3223.5,3222.6,5.17275004]
[1720950555774,2.4723,3223.4,3222.6,5.17275004]
[1720950556071,2.82982034,3223.4,3222.6,5.23479841]
[1720950556356,2.4723,3223.4,3222.6,5.23479841]
[1720950556535,2.4723,3223.4,3222.6,6.01279841]
[1720950557420,0.32490339,3223.6,3223.1,0.778]
[1720950557622,0.32490339,3223.6,3222.6,7.48435004]
[1720950557623,0.32490339,3223.6,3223.4,0.778]
[1720950559680,2.79720339,3223.6,3223.0,0.778]
[1720950560675,2.79720339,3223.6,3222.8,0.778]
[1720950560889,2.79720339,3223.6,3223.0,0.778]
[1720950562684,2.79720339,3223.6,3222.6,5.17275004]
[1720950562987,2.79720339,3223.6,3222.7,0.58552083]
[1720950563185,2.4723,3223.6,3222.8,0.06204167]
[1720950563882,2.4723,3223.6,3222.7,0.52347917]
[1720950564442,2.4723,3223.6,3222.8,0.0620417]
[1720950564642,2.4723,3223.6,3222.7,0.52347917]
[1720950564852,2.4723,3223.6,3222.8,0.56962292]
[1720950565456,2.4723,3223.6,3222.8,0.63166464]
[1720950565830,2.4723,3223.6,3222.8,0.56962292]
[1720950567416,2.4723,3223.6,3222.6,5.17275004]
[1720950569015,4.7,3224.2,3222.6,5.17275004]
[1720950569016,2.3096,3223.4,3222.6,5.17275004]
[1720950570027,0.55,3223.3,3222.6,5.17275004]
[1720950570228,2.3096,3223.2,3222.6,5.17275004]
[1720950572730,2.3096,3223.2,3222.3,5.17275004]
[1720950572928,2.3096,3223.2,3222.3,5.69002504]
[1720950573318,0.32492217,3223.1,3222.3,5.69002504]
[1720950573514,2.3096,3223.0,3222.3,5.69002504]
[1720950585778,2.3096,3223.0,3222.4,0.06205544]
[1720950585910,2.3096,3223.0,3222.7,0.779]
[1720950586663,2.3096,3223.0,3222.5,0.779]
[1720950588336,2.3096,3223.0,3222.5,1.43210805]
[1720950595966,2.3096,3223.0,3222.5,0.65310805]
[1720950596276,2.3096,3223.0,3222.3,5.17275004]
[1720950596957,2.3613,3222.8,3222.3,5.17275004]
[1720950597471,0.779,3222.7,3222.3,5.17275004]
[1720950597673,2.3613,3222.6,3222.3,5.17275004]
[1720950598262,2.70783058,3222.6,3222.3,5.17275004]
[1720950598478,2.3613,3222.4,3222.3,5.17275004]
[1720950598691,2.3613,3222.4,3221.3,0.779]
[1720950598692,2.3613,3222.4,3221.7,5.17275004]
[1720950601053,2.68630584,3222.7,3222.2,0.779]
[1720950601370,0.32500584,3222.7,3222.4,0.779]
[1720950601972,0.32500584,3222.7,3222.2,0.779]
[1720950602160,0.32500584,3222.7,3222.3,0.06205492]
[1720950603801,0.32500584,3222.7,3222.2,0.779]
[1720950604382,0.32500584,3222.7,3222.3,0.06205489]
[1720950605240,0.32500584,3222.7,3222.2,0.779]
[1720950605991,0.32500584,3222.7,3222.0,0.779]
[1720950606279,0.32500584,3222.7,3222.2,0.779]
[1720950606450,0.32500584,3222.7,3222.3,0.06205493]
[1720950606776,0.32500584,3222.7,3222.2,0.779]
[1720950607189,0.32500584,3222.7,3222.3,0.06205499]
[1720950608187,0.32500584,3222.7,3222.0,0.779]
[1720950608488,2.3977,3222.6,3222.0,0.779]
[1720950608787,2.3977,3222.6,3221.8,0.779]
[1720950608991,2.3977,3222.6,3221.9,0.595175]
[1720950609965,2.3977,3222.6,3222.0,0.06206067]
[1720950610164,2.3977,3222.6,3221.9,0.595175]
[1720950610494,2.3977,3222.6,3222.0,0.779]
[1720950611603,2.3977,3222.6,3221.9,0.595175]
[1720950612654,2.3977,3222.6,3221.7,5.17275004]
[1720950613851,2.3977,3222.6,3221.7,5.23481725]
[1720950615852,2.3977,3222.6,3221.7,5.17275004]
[1720950616098,2.3977,3222.6,3221.7,5.23481729]
[1720950616510,2.3977,3222.6,3221.7,5.17275004]
[1720950616681,2.3977,3222.6,3221.7,6.49140693]
[1720950617007,2.3977,3222.6,3221.8,0.84106727]
[1720950618281,2.3977,3222.6,3221.8,0.779]
[1720950621618,2.3977,3222.6,3221.7,5.17275004]
[1720950621776,2.3977,3222.1,3221.7,5.17275004]
[1720950622319,2.71537,3222.1,3221.6,6.6141462]
[1720950622470,2.71537,3222.1,3221.3,5.17275004]
[1720950622471,0.32500893,3222.0,3221.3,5.17275004]
[1720950623005,2.3977,3221.9,3221.3,5.17275004]
[1720950624793,0.779,3221.6,3221.3,5.17275004]
[1720950624991,2.3977,3221.5,3221.3,5.17275004]
[1720950626098,2.3977,3221.5,3221.1,6.6141462]
[1720950628009,2.3977,3221.5,3221.1,7.35346082]
[1720950629219,2.3977,3221.5,3221.1,6.6141462]
[1720950632042,2.3977,3221.5,3221.2,0.06592361]
[1720950632228,2.3977,3221.5,3220.8,5.17275004]
[1720950632423,2.3977,3221.5,3220.9,0.06616131]
[1720950637735,0.3249946,3221.4,3220.9,0.06616131]
[1720950638079,0.3249946,3221.4,3220.8,5.17275004]
[1720950638378,0.3249946,3221.4,3221.0,0.06396151]
[1720950638540,0.3249946,3221.4,3220.9,0.66580763]
[1720950638742,0.3249946,3221.4,3221.1,0.06390653]
[1720950639052,0.3249946,3221.4,3221.2,0.06385156]
[1720950639436,0.3249946,3221.4,3220.9,0.60179114]
[1720950639637,0.3249946,3221.4,3221.0,0.06396151]
[1720950648306,0.3249946,3221.4,3220.8,5.17275004]
[1720950648510,0.3249946,3221.4,3221.1,0.06390316]
[1720950649021,0.3249946,3221.4,3221.2,0.06384819]
[1720950649319,0.3249946,3221.4,3220.8,5.17275004]
[1720950649523,0.3249946,3221.4,3221.3,0.06379322]
[1720950649726,0.3249946,3221.4,3220.9,1.44247411]
[1720950649921,0.3249946,3221.4,3221.3,0.06379745]
[1720950650123,0.3249946,3221.4,3220.9,1.44247411]
[1720950650329,0.3249946,3221.4,3221.3,0.06379745]
[1720950650493,0.3249946,3221.4,3220.9,1.44247411]
[1720950650826,0.3249946,3221.4,3221.0,0.66152242]
[1720950651043,0.3249946,3221.4,3221.3,0.779]
[1720950651255,0.3249946,3221.4,3221.3,0.8410746]
[1720950651407,0.3249946,3221.4,3221.3,0.90487205]
[1720950651729,0.3249946,3221.4,3221.3,3.29449745]
[1720950651935,0.3249946,3221.4,3221.3,3.63015463]
[1720950652090,0.3249946,3221.4,3221.3,1.17845463]
[1720950652294,0.3249946,3221.4,3221.3,0.84279745]
[1720950653335,0.3249946,3221.4,3221.3,0.06379745]
[1720950655071,0.3249946,3221.4,3221.0,1.44052242]
[1720950655229,0.3249946,3221.4,3221.3,0.06373821]
[1720950655425,0.3249946,3221.4,3221.0,0.66152242]
[1720950655741,0.3249946,3221.4,3221.1,0.06384815]
[1720950656166,0.3249946,3221.4,3221.0,1.44052242]
[1720950656370,0.3249946,3221.4,3221.2,0.06379318]
[1720950656572,0.3249946,3221.4,3221.1,0.06384815]
[1720950656750,0.3249946,3221.4,3221.3,0.06373821]
[1720950656947,0.3249946,3221.4,3221.2,0.06379318]
[1720950657273,0.3249946,3221.4,3221.3,0.06373821]
[1720950657664,0.3249946,3221.4,3221.0,1.44052242]
[1720950657859,0.3249946,3221.4,3221.3,0.06162694]
[1720950658092,0.3249946,3221.4,3221.0,1.44052242]
[1720950658275,0.3249946,3221.4,3221.3,0.06162694]
[1720950658656,0.3249946,3221.4,3221.2,0.779]
[1720950658969,0.3249946,3221.4,3221.3,0.06165571]
[1720950660489,0.3249946,3221.4,3221.3,0.12373465]
[1720950660802,1.5,3224.4,3221.3,0.12373465]
[1720950660803,2.3118,3223.2,3221.7,2.48315]
[1720950660950,2.3118,3223.2,3222.5,0.779]
[1720950661172,2.3118,3223.2,3222.7,0.779]
[1720950661620,2.3118,3223.2,3222.6,0.06092787]
[1720950661621,2.3118,3223.2,3222.8,0.06081803]
[1720950661978,2.3118,3223.2,3222.5,0.779]
[1720950662179,2.3118,3223.2,3222.9,0.06076311]
[1720950662505,2.3118,3223.2,3223.0,0.06065913]
[1720950662882,2.3118,3223.2,3222.7,0.779]
[1720950663204,2.3118,3223.2,3223.1,0.06060422]
[1720950663405,2.54298,3223.2,3222.5,0.779]
[1720950663615,2.54298,3223.2,3223.1,0.06060422]
[1720950663821,2.54298,3223.2,3222.5,0.779]
[1720950664316,2.54298,3223.2,3222.6,0.0608788]
[1720950665390,2.3118,3223.2,3222.6,0.0608788]
[1720950673544,0.779,3223.1,3222.6,0.0608788]
[1720950674051,0.779,3223.1,3222.2,5.17275004]
[1720950674265,0.779,3223.1,3222.3,0.06089725]
[1720950674555,2.3118,3223.2,3222.3,0.83989725]
[1720950674759,2.3118,3223.2,3222.5,0.779]
[1720950674921,2.2973,3223.6,3222.9,0.779]
[1720950675319,2.2973,3223.6,3223.0,0.0605204]
[1720950676714,2.2973,3223.6,3222.7,6.0137983]
[1720950676918,2.2973,3223.6,3223.1,0.06045619]
[1720950677272,2.2973,3223.6,3223.2,0.06040129]
[1720950677551,2.2973,3223.6,3222.9,0.779]
[1720950677713,2.2973,3223.6,3223.3,0.06032186]
[1720950677916,2.2973,3223.6,3223.0,0.80756596]
[1720950678117,2.2973,3223.6,3223.4,0.06026781]
[1720950678423,2.2973,3223.6,3223.5,0.06021207]
[1720950678623,2.2973,3223.6,3223.0,0.74551945]
[1720950678932,2.2973,3223.6,3223.1,0.06043167]
[1720950679340,2.2973,3223.6,3223.0,0.74551945]
[1720950679522,2.2973,3223.6,3223.2,0.06037676]
[1720950679714,2.2973,3223.6,3223.1,0.06043167]
[1720950679939,2.2973,3223.6,3223.3,0.06032186]
[1720950680138,2.2973,3223.6,3223.2,0.06037676]
[1720950680455,2.2973,3223.6,3223.3,0.06032186]
[1720950680664,2.2973,3223.6,3223.0,0.74551945]
[1720950680875,2.2973,3223.6,3223.1,0.06043167]
[1720950681181,2.2973,3223.6,3223.0,0.74551945]
[1720950681457,2.2973,3223.6,3223.1,0.06043167]
[1720950681632,2.2973,3223.6,3223.0,0.74551945]
[1720950681833,2.2973,3223.6,3223.1,0.06043167]
[1720950682033,2.2973,3223.6,3223.0,0.74551945]
[1720950682246,2.2973,3223.6,3223.1,0.06043167]
[1720950682550,2.2973,3223.6,3223.0,0.74551945]
[1720950682769,2.2973,3223.6,3223.2,0.06037676]
[1720950682985,0.779,3223.4,3223.1,0.06040714]
[1720950683258,0.779,3223.4,3222.8,6.6141462]
[1720950683259,2.63742307,3223.6,3223.2,0.06035223]
[1720950683465,0.779,3223.3,3222.8,6.6141462]
[1720950683960,0.779,3223.3,3222.9,0.06051696]
[1720950688773,0.779,3223.3,3222.7,5.17275004]
[1720950688970,0.779,3223.3,3223.0,0.06046205]
[1720950689176,1.08663,3223.3,3222.7,5.17275004]
[1720950689393,0.779,3223.3,3223.1,0.06040714]
[1720950689683,2.2646,3223.2,3222.7,5.17275004]
[1720950692784,2.2646,3223.2,3222.8,0.06057187]
[1720950693010,2.2646,3223.2,3222.7,5.17275004]
[1720950693216,0.32495763,3223.1,3222.9,0.06051696]
[1720950693513,0.32495763,3223.1,3223.0,0.06046205]
[1720950693679,0.32495763,3223.1,3222.7,5.17275004]
[1720950693883,0.32495763,3223.1,3222.8,0.06057187]
[1720950694116,0.32495763,3223.1,3222.7,5.17275004]
[1720950694316,0.32495763,3223.1,3222.9,0.06054402]
[1720950694515,0.32495763,3223.1,3222.4,13.05126473]
[1720950694723,0.32495763,3223.1,3223.0,0.06048911]
[1720950694919,0.32495763,3223.1,3222.4,0.60126473]
[1720950695125,0.32495763,3223.1,3223.0,0.06048911]
[1720950695417,0.32495763,3223.1,3222.4,0.60126473]
[1720950695619,0.32495763,3223.1,3223.0,0.06048911]
[1720950696124,0.32495763,3223.1,3222.4,0.60126473]
[1720950696301,0.32495763,3223.1,3222.3,5.95175004]
[1720950696302,0.32495763,3223.1,3223.0,0.06048911]
[1720950696501,0.32495763,3223.1,3222.3,5.95175004]
[1720950696702,0.32495763,3223.1,3223.0,0.06048911]
[1720950696902,0.32495763,3223.1,3222.3,5.95175004]
[1720950697130,0.32495763,3223.1,3222.4,0.06081864]
[1720950697301,0.32495763,3223.1,3222.5,1.38025687]
[1720950697508,0.32495763,3223.1,3222.6,0.06070878]
[1720950697889,0.32495763,3223.1,3222.6,2.4652652]
[1720950698097,0.32495763,3223.1,3222.7,1.329]
[1720950698302,0.32495763,3223.1,3222.8,0.06059894]
[1720950698602,0.32495763,3223.1,3222.7,1.329]
[1720950698821,0.32495763,3223.1,3222.9,0.06054402]
[1720950699125,0.32495763,3223.1,3223.0,0.06048911]
[1720950699329,0.32495763,3223.1,3222.8,0.37335564]
[1720950699518,0.32495763,3223.1,3223.0,0.06048911]
[1720950699713,0.32495763,3223.1,3222.8,0.37335564]
[1720950699929,0.32495763,3223.1,3223.0,0.06048911]
[1720950721998,0.32495763,3223.1,3223.0,1.38948911]
[1720950722181,0.32495763,3223.1,3223.0,3.80298911]
[1720950722490,2.14991193,3226.1,3223.1,2.482]
[1720950722691,1.7,3226.3,3224.2,0.779]
[1720950722692,2.4809,3225.1,3224.2,0.779]
[1720950722984,2.4809,3225.1,3224.2,0.8410228]
[1720950723193,0.779,3225.0,3224.3,0.05973074]
[1720950724194,0.779,3225.0,3224.1,0.06202281]
[1720950724400,0.779,3225.0,3224.4,0.05967587]
[1720950724704,0.779,3225.0,3224.1,0.06202281]
[1720950724861,0.779,3225.0,3224.5,0.05962101]
[1720950725197,0.779,3225.0,3224.6,0.05956615]
[1720950725491,0.779,3225.0,3224.1,0.06202281]
[1720950725671,0.779,3224.8,3223.8,0.779]
[1720950725873,0.779,3224.8,3224.2,0.05768819]
[1720950726166,0.779,3224.8,3224.3,0.05763333]
[1720950726373,0.779,3224.8,3223.8,0.779]
[1720950726580,0.779,3224.8,3224.4,0.05757846]
[1720950726880,0.779,3224.6,3223.6,3.0]
[1720950727079,0.779,3224.6,3224.5,0.05552149]